Workbook

Sheet Calculate
C1: Operating Scenarios
C2: Default Saved | F2: Sample | W2: TRUE | X2: Saved Match Counter | Y2: =IF(OR(Saved1!Y2=0,Saved2!Y2=0),0,1) -> 0 | AE2: 5
A3: Pasture Aeration and Fertilization Payoff Calculator | Y3: =IF(Saved1!Y2=0,Saved1!C2,IF(Saved2!Y2=0,Saved2!F2)) -> Sample
B5: Tractor | C5: Purchase Price | D5: Hours at Purchase | E5: Expected Annual Use | H5: Benchmark Operation (before aeration &/or gypsum application) | M5: After aeration &/or gypsum application | Q5: Tractor | R5: Purchase Price | S5: Hours @ Purchase | T5: Expected Annual Use | W5: Defaults | AE5: Expected Yield Increase | AF5: Calculated BE Yield Increase | AG5: BE Yield with other values at 0
H6: Operation/ Operating Input | I6: Unit | J6: # of Trips/ App. Rate | K6: Unit Cost | L6: Total Cost ($/acre) | M6: # of Trips/ App. Rate | N6: Total Cost ($/acre) | W6: Operation/ Operating Input | Y6: Unit | Z6: # of trips/ Quantity | AA6: Unit Cost | AE6: 0.05 | AF6: 0.05311499713
B7: 2 WD 50 | C7: 32200 | D7: 0 | E7: 600 | Q7: =B7 -> 2 WD 50 | R7: =VLOOKUP(Q7,Defaults!$B$22:$C$29,2,FALSE) -> 32200 | S7: =VLOOKUP(Q7,Defaults!$B$22:$D$29,3,FALSE) -> 0 | T7: =VLOOKUP(B7,Defaults!$B$22:$L$29,11,FALSE) -> 600
B8: Implement Rent | C8: Width | D8: Speed (mph) | E8: Purchase Price/ Rental Rate | F8: Hours @ Purchase | H8: Fertilizer Spreader | J8: 1 | L8: =IF(Q14=TRUE,(E10/C16)*J8+Machinery!$AM$3,Machinery!$AM$3) -> 1.2 | M8: =+J8+IF(M12>0,1,0) -> 2 | N8: =IF(Q14=TRUE,(E10/C16)+Machinery!$AM$6,Machinery!$AM$6)*M8 -> 2.4 | Q8: Implement | R8: Width (ft) | S8: Speed (mph) | T8: Purchase Price | U8: Hours @ Purchase | W8: Fertilizer Spreader | Z8: =Defaults!$E$5 -> 1 | AA8: ="" ->  | AE8: Expected N&P Runoff Reduction | AF8: Calculated BE N&P Runoff Reduction | AG8: BE N&P with other values at 0
H9: Urea [46-0-0] | I9: lb | J9: 65 | K9: 0.15 | L9: =J9*K9 -> 9.75 | M9: =J9*IF(OR(M15=0,M15=""),1,(1-B32)) -> 64.675 | N9: =M9*K9 -> 9.70125 | W9: Urea [46-0-0] | Y9: lb | Z9: =Defaults!$E$6 -> 200 | AA9: =Defaults!F6 -> 0.15 | AE9: 0.005 | AF9: -0.1209262943
B10: Fertilizer Spreader Rental | C10: 40 ft | D10: 7 | E10: 0 | H10: Triple Superphosphate [0-45-0] | I10: lb | J10: 0 | K10: 0.22 | L10: 0 | M10: =J10*IF(OR(M15=0,M15=""),1-IF(OR(M12=0,M12=""),0,B35),1-B32-IF(OR(M12=0,M12=""),0,B35)) -> 0 | N10: =M10*K10 -> 0 | Q10: =B10 -> Fertilizer Spreader Rental | R10: 40 ft | S10: =VLOOKUP(R10,Defaults!$C$32:$I$32,7,FALSE) -> 7 | T10: =IF(Q14=TRUE,Defaults!C42,VLOOKUP(R10,Defaults!$C$32:$D$32,2,FALSE)) -> 0 | U10: =IF(Q14=TRUE,"",0) ->  | W10: Triple Superphosphate [0-45-0] | Y10: lb | Z10: =Defaults!$E$7 -> 110 | AA10: =Defaults!F7 -> 0.22
B11: Manure Spreader | C11: Small | D11: 5 | E11: 10266.3 | F11: 0 | H11: Potash [0-0-60] | I11: lb | J11: 0 | K11: 0.15 | L11: 0 | M11: =J11*IF(OR(M15=0,M15=""),1,(1-B32)) -> 0 | N11: =M11*K11 -> 0 | Q11: Manure Spreader | R11: Small | S11: =VLOOKUP(R11,Defaults!$C$33:$I$35,7,FALSE) -> 5 | T11: =IF(Q15,Defaults!C43,VLOOKUP(R11,Defaults!$C$33:$D$35,2,FALSE)) -> 10266.3 | U11: =IF(Q15=TRUE,"",0) -> 0 | W11: Potash [0-0-60] | Y11: lb | Z11: =Defaults!$E$8 -> 100 | AA11: =Defaults!F8 -> 0.15 | AE11: Expected P Runoff Reduction | AF11: Calculated BE P Runoff Reduction | AG11: BE P Runoff with other values at 0
B12: Aerator Rental | C12: 10 ft | D12: 4 | E12: 200 | H12: Gypsum | I12: ton | K12: 31 | L12: na | M12: 0.25 | N12: =M12*K12 -> 7.75 | Q12: Aerator Rental | R12: 10 ft | S12: =VLOOKUP(R12,Defaults!$C$36:$I$40,7,FALSE) -> 5 | T12: =IF(Q13=TRUE,Defaults!C41,VLOOKUP(R12,Defaults!$C$36:$D$40,2,FALSE)) -> 0 | U12: =IF(Q13=TRUE,"",0) ->  | W12: Gypsum | Y12: ton | Z12: =Defaults!$E$9 -> 1 | AA12: =Defaults!F9 -> 31 | AE12: 0.005 | AF12: 0.1315358117
H13: Manure Spreader | J13: 1 | L13: =IF(Q15=TRUE,(E11/C16)*M13+Machinery!$AM$4,Machinery!$AM$4) -> 7.72 | M13: =J13 -> 1 | N13: =IF(Q15=TRUE,(E11/C16)*M13+Machinery!$AM$4,Machinery!$AM$4) -> 7.72 | Q13: TRUE | R13: << Aerator Rental | W13: Manure Spreader | Y13: ="" ->  | Z13: =Defaults!$E$10 -> 1 | AA13: ="" -> 
H14: Poultry Litter [3-3-3] | I14: ton | J14: 2 | K14: 20 | L14: =J14*K14 -> 40 | M14: =J14*IF(OR(M15=0,M15=""),1-IF(OR(M12=0,M12=""),0,B35),1-B32-IF(OR(M12=0,M12=""),0,B35)) -> 1.98 | N14: =M14*K14 -> 39.6 | Q14: TRUE | R14: << Fertilizer Spreader Rental | W14: Poultry Litter [3-3-3] | Y14: ton | Z14: =Defaults!$E$11 -> 1 | AA14: =Defaults!F11 -> 20
H15: Aerator | M15: 1 | N15: =IF(Q13=TRUE,(E12/C16)*M15+Machinery!$AM$5,Machinery!$AM$5) -> 8.306666667 | Q15: FALSE | R15: << Manure Spreader Rental | W15: Aerator | Y15: ="" ->  | Z15: =Defaults!$E$12 -> 1 | AA15: ="" -> 
B16: Area affected | C16: 300 | D16: in acres
B17: Exp. Hay Price | C17: 30 | D17: per 1,200 lb. bale | K17: Operating Interest ($/acre) | L17: =((SUM(L8:L12)+SUM(L13:L14))-(IFERROR(Machinery!$AH$3/Machinery!$R$3,0)*J8+IFERROR(Machinery!$AH$4/Machinery!$R$4,0)*J13))/2*C23 -> 1.313348356 | N17: =((SUM(N8:N12)+SUM(N13:N14)+N15)-(+IFERROR(Machinery!$AH$6/Machinery!$R$6,0)*J8+IFERROR(Machinery!$AH$4/Machinery!$R$4,0)*J13+IFERROR(Machinery!$AH$5/Machinery!$R$5,0)*M15))/2*C23 -> 1.679243292 | Q17: Exp. Hay Price | R17: =Defaults!I6 -> 35 | S17: per bale
B18: Exp. Hay Yields | C18: 5 | D18: bales/acre | K18: Total Specified Expenses ($/acre) | L18: =SUM(L8:L14)+L17 -> 59.98334836 | N18: =SUM(N8:N17) -> 77.15715996 | Q18: Exp. Hay Yields | R18: =Defaults!I9 -> 5 | S18: bales/acre
B19: Fuel Cost | C19: 1.75 | D19: per gallon | H19: Check to convert custom blend fertilizers to urea, phosphate, and potash quanity and price equivalents: | Q19: Fuel Cost | R19: =Defaults!L11 -> 1.75 | S19: per gallon
B20: Operator Labor | C20: 13.14 | D20: per hour | Q20: Operator Labor | R20: =Defaults!M3 -> 13.14 | S20: per hour | W20: Apply custom fertilizer price and quantity | Y20: FALSE
B21: Hired Labor | C21: 9.06 | D21: per hour | H21: Custom Fertilizer Name | J21: N | K21: P2O5 | L21: K2O | M21: App. Rate (lb/acre) | N21: Cost ($/lb) | O21: Total Cost | Q21: Hired Labor | R21: =Defaults!M4 -> 9.06 | S21: per hour | W21: Fertilizer Equivalent | X21: N | Y21: P2O5 | Z21: K2O | AA21: App. Rate (lbs) | AB21: Unit Cost ($/lb) | AC21: Cost ($/acre)
B22: Equipment Capital Recovery Rate | C22: 0.06 | D22: annual | H22: Ammonium Nitrate | J22: 34 | K22: 0 | L22: 0 | M22: 0 | N22: 0.28 | O22: =M22*N22 -> 0 | Q22: Ammoritization | R22: =Defaults!M7 -> 0.06 | W22: =$H$9 -> Urea [46-0-0] | X22: 46 | Y22: 0 | Z22: 0 | AA22: =SUM(AA26,AA30,AA34) -> 7.065217391 | AB22: =IFERROR((AC26+AC30+AC34)/(AA26+AA30+AA34),0) -> 0.2358974359 | AC22: =AA22*AB22 -> 1.666666667
B23: Operating Interest | C23: 0.0475 | D23: annual | H23: DAP | J23: 18 | K23: 46 | L23: 0 | M23: 0 | N23: 0.32 | O23: =M23*N23 -> 0 | Q23: Operating | R23: =Defaults!M8 -> 0.0475 | W23: =$H$10 -> Triple Superphosphate [0-45-0] | X23: 0 | Y23: 45 | Z23: 0 | AA23: =SUM(AA27,AA31,AA35) -> 7.222222222 | AB23: =IFERROR((AC27+AC31+AC35)/(AA27+AA31+AA35),0) -> 0.2307692308 | AC23: =AA23*AB23 -> 1.666666667
H24: Custom Blend | J24: 13 | K24: 13 | L24: 13 | M24: 25 | N24: 0.2 | O24: =M24*N24 -> 5 | W24: =$H$11 -> Potash [0-0-60] | X24: 0 | Y24: 0 | Z24: 60 | AA24: =SUM(AA28,AA32,AA36) -> 5.416666667 | AB24: =IFERROR((AC28+AC32+AC36)/(AA28+AA32+AA36),0) -> 0.3076923077 | AC24: =AA24*AB24 -> 1.666666667
W25: =H22 -> Ammonium Nitrate | X25: N | Y25: P2O5 | Z25: K2O | AA25: App. Rate (lbs) | AB25: Unit Cost ($/lb) | AC25: Cost ($/acre)
B26: Breakeven Analysis | H26: Profitability and GHG Implications of Modified Practices | W26: =$H$9 -> Urea [46-0-0] | X26: =X22 -> 46 | Y26: =Y22 -> 0 | Z26: 0 | AA26: =IFERROR(($M$22*$J$22/100)/(X26/100),0) -> 0 | AB26: =IFERROR(AC26/AA26,0) -> 0 | AC26: =IFERROR(J22/SUM(J22:L22)*O22,0) -> 0
W27: =$H$10 -> Triple Superphosphate [0-45-0] | X27: =X23 -> 0 | Y27: 45 | Z27: 0 | AA27: =IFERROR(($M$22*$K$22/100)/(Y27/100),0) -> 0 | AB27: =IFERROR(AC27/AA27,0) -> 0 | AC27: =IFERROR(K22/SUM(J22:L22)*O22,0) -> 0
B28: Expected Yield Increase | L28: Benchmark total specified expenses ($/acre) | M28: =$L$18 -> 59.98334836 | W28: =$H$11 -> Potash [0-0-60] | X28: =X24 -> 0 | Y28: 0 | Z28: 60 | AA28: =IFERROR(($M$22*$L$22/100)/(Z28/100),0) -> 0 | AB28: =IFERROR(AC28/AA28,0) -> 0 | AC28: =IFERROR(L22/SUM(J22:L22)*O22,0) -> 0
B29: 0.05 | L29: Modified total specified expenses ($/acre) | M29: =$N$18 -> 77.15715996 | W29: =H23 -> DAP | X29: N | Y29: P2O5 | Z29: K2O | AA29: App. Rate (lbs) | AB29: Unit Cost ($/lb) | AC29: Cost ($/acre)
B30: =IF(AND(OR(M15=0,M15=""),OR(M12=0,M12="")),"No yield increase when no aeration is not in use and gypsum is not applied","") ->  | L30: Expected Yield Increase (bales/acre) | M30: =$C$18*IF(OR(M15=0,M15=""),0,$B$29) -> 0.25 | W30: =$H$9 -> Urea [46-0-0] | X30: =X26 -> 46 | Y30: =Y26 -> 0 | Z30: 0 | AA30: =IFERROR(($M$23*$J$23/100)/(X30/100),0) -> 0 | AB30: =IFERROR(AC30/AA30,0) -> 0 | AC30: =IFERROR(J23/SUM(J23:L23)*O23,0) -> 0
B31: Expected N & P Runoff Reduction from Aeration | L31: Expected Revenue from Yield Increase ($/acre) | M31: =M30*$C$17 -> 7.5 | W31: =$H$10 -> Triple Superphosphate [0-45-0] | X31: =X27 -> 0 | Y31: 45 | Z31: 0 | AA31: =IFERROR(($M$23*$K$23/100)/(Y31/100),0) -> 0 | AB31: =IFERROR(AC31/AA31,0) -> 0 | AC31: =IFERROR(K23/SUM(J23:L23)*O23,0) -> 0
B32: 0.005 | L32: Total Expected Revenue from Yield Increase | M32: =M31*$C$16 -> 2250 | W32: =$H$11 -> Potash [0-0-60] | X32: =X28 -> 0 | Y32: 0 | Z32: 60 | AA32: =IFERROR(($M$23*$L$23/100)/(Z32/100),0) -> 0 | AB32: =IFERROR(AC32/AA32,0) -> 0 | AC32: =IFERROR(L23/SUM(J23:L23)*O23,0) -> 0
B33: =IF(OR(M15=0,M15=""),"No N & P reduction from aeration when not in use","") ->  | L33: Expected Cost Savings from N Runoff ($/acre) | M33: =$L$9-$N$9+$L$14*IF(OR(M15=0,M15=""),0,B32/2) -> 0.14875 | W33: =H24 -> Custom Blend | X33: N | Y33: P2O5 | Z33: K2O | AA33: App. Rate (lbs) | AB33: Unit Cost ($/lb) | AC33: Cost ($/acre)
B34: Expected P Runoff Reduction from Gypsum | L34: Expected Cost Savings from P Runoff ($/acre) | M34: =$L$10-$N$10+$L$14*IF(OR(M12=0,M12=""),IF(OR(M15=0,M15=""),0,B32/2),B35+IF(OR(M15=0,M15=""),0,B32/2)) -> 0.3 | W34: =$H$9 -> Urea [46-0-0] | X34: =X30 -> 46 | Y34: =Y30 -> 0 | Z34: 0 | AA34: =IFERROR(($M$24*$J$24/100)/(X34/100),0) -> 7.065217391 | AB34: =IFERROR(AC34/AA34,0) -> 0.2358974359 | AC34: =IFERROR(J24/SUM(J24:L24)*O24,0) -> 1.666666667
B35: 0.005 | L35: Expected profitability of aeration &/or gypsum application ($/acre) | M35: =(M28-M29)+M31+M33+M34 -> -9.225061603 | W35: =$H$10 -> Triple Superphosphate [0-45-0] | X35: =X31 -> 0 | Y35: 45 | Z35: 0 | AA35: =IFERROR(($M$24*$K$24/100)/(Y35/100),0) -> 7.222222222 | AB35: =IFERROR(AC35/AA35,0) -> 0.2307692308 | AC35: =IFERROR(K24/SUM(J24:L24)*O24,0) -> 1.666666667
B36: =IF(OR(M12=0,M12=""),"No additional P reduction from gypsum when not applied","") ->  | L36: Farm Total ($) | M36: =M35*$C$16 -> -2767.518481 | W36: =$H$11 -> Potash [0-0-60] | X36: =X32 -> 0 | Y36: 0 | Z36: 60 | AA36: =IFERROR(($M$24*$L$24/100)/(Z36/100),0) -> 5.416666667 | AB36: =IFERROR(AC36/AA36,0) -> 0.3076923077 | AC36: =IFERROR(L24/SUM(J24:L24)*O24,0) -> 1.666666667
L38: Expected Decrease in CEQ GHG Emissions (lbs/bale) | M38: =Y50/C18-Z50/(C18+M30) -> 8.777860367
L39: Farm Total Expected Decrease in CEQ GHG Emissions (tons) | M39: =+(Y50-Z50)*C16/2000 -> -1.396210526
B42: Disclaimer: The information provided within represents estimates that are a result of a set of complex calculations that are described in more detail in the accompanying publication. Changes in parameter values and its implications on returns and GHG emissions are estimates and the user should use their own reasonable judgment to reflect whether the direction of change in returns and GHG emissions is appropriate before acting on the results. As such, this software is provided ‘as is’ and without warranties as to performance of merchantability. Further, statements may have been made to you about this software. Any such statements do not constitute warranties and shall not be relied on by the user in deciding whether to use the program or act on its results. This program is provided without any expressed or implied warranties whatsoever. Because the diversity of conditions and hardware under which this program may be used, no warranty of merchantability or warranty of fitness for a particular purpose is offered. The user is advised to test the program thoroughly before relying on it. The user assumes the entire risk of using the program. The University of Arkansas will not be liable for any claim or damage brought against the user by any third party, nor will the University of Arkansas be liable for any consequential, indirect or special damages suffered by the user as a result of the software. | W42: Input | X42: lbs of C Eq. per Input Unit | Y42: Before Aeration | Z42: After Aeration
W44: Urea [46-0-0] | X44: =Defaults!L15 -> 1.208167659 | Y44: =J9*$X44 -> 78.5308978 | Z44: =M9*$X44 -> 78.13824331
W45: Triple Superphosphate [0-45-0] | X45: =Defaults!L16 -> 0.6324478338 | Y45: =J10*$X45 -> 0 | Z45: =M10*$X45 -> 0
W46: Potash [0-0-60] | X46: =Defaults!L17 -> 0.1083607598 | Y46: =J11*$X46 -> 0 | Z46: =M11*$X46 -> 0
W47: Poultry Litter [3-3-3] | X47: =Defaults!L18 -> 0.257326461 | Y47: =J14*$X47*2000 -> 1029.305844 | Z47: =M14*$X47*2000 -> 1019.012786
W48: Gypsum | X48: =Defaults!L19 -> 0.02959767142 | Z48: =+X48*M12*2000 -> 14.79883571
W49: Fuel use change | X49: =0.893*3.78/0.453592 -> 7.441797915 | Z49: =+Machinery!AE5/Machinery!R5*X49*M15 -> 5.194947391
X50: Exp. Carbon Footprint (lbs/acre) | Y50: =SUM(Y44:Y47) -> 1107.836742 | Z50: =SUM(Z44:Z49) -> 1117.144812

Sheet Saved1
C2: Default Saved | X2: saved match counter | Y2: =SUM(AA2:AX35) -> 14 | AB2: =IF(C2=Calculate!C2,0,1) -> 0
B5: =Calculate!B5 -> Tractor | C5: =Calculate!C5 -> Purchase Price | D5: =Calculate!D5 -> Hours at Purchase | E5: =Calculate!E5 -> Expected Annual Use | H5: Benchmark Operation (before aeration) | M5: After Aeration
H6: Operation/ Operating Input | I6: Unit | J6: # of Trips/ Application Rate | K6: Unit Cost | M6: # of Trips/ Application Rate | N6: Total Cost ($/acre)
B7: MFWD 50 | C7: 39100 | D7: 0 | E7: 600 | AA7: =IF(B7=Calculate!B7,0,1) -> 1 | AB7: =IF(C7=Calculate!C7,0,1) -> 1 | AC7: =IF(D7=Calculate!D7,0,1) -> 0 | AD7: =IF(E7=Calculate!E7,0,1) -> 0
B8: =Calculate!B8 -> Implement Rent | C8: =Calculate!C8 -> Width | D8: =Calculate!D8 -> Speed (mph) | E8: Purchase Price/ Rental Rate | F8: =Calculate!F8 -> Hours @ Purchase | H8: Fertilizer Spreader | J8: 1 | M8: =+J8+IF(M12>0,1,0) -> 2 | N8: 5.82 | Q8: FALSE | R8: << Modified Fert trips | AI8: =IF(J8=Calculate!J8,0,1) -> 0
H9: Urea [46-0-0] | I9: lb | J9: 200 | K9: 0.15 | M9: =J9*IF(OR(M15=0,M15=""),1,(1-B32)) -> 199 | N9: =M9*K9 -> 29.85 | AI9: =IF(J9=Calculate!J9,0,1) -> 1 | AJ9: =IF(K9=Calculate!K9,0,1) -> 0
B10: Fertilizer Spreader | C10: 40 ft | D10: 7 | E10: 11800 | F10: 0 | H10: Triple Superphosphate [0-45-0] | I10: lb | J10: 110 | K10: 0.22 | M10: =J10*IF(OR(M15=0,M15=""),1-IF(OR(M12=0,M12=""),0,B35),1-B32-IF(OR(M12=0,M12=""),0,B35)) -> 108.9 | N10: =M10*K10 -> 23.958 | AB10: =IF(C10=Calculate!C10,0,1) -> 0 | AC10: =IF(D10=Calculate!D10,0,1) -> 0 | AD10: =IF(E10=Calculate!E10,0,1) -> 1 | AE10: =IF(F10=Calculate!F10,0,1) -> 0 | AI10: =IF(J10=Calculate!J10,0,1) -> 1 | AJ10: =IF(K10=Calculate!K10,0,1) -> 0
B11: Manure Spreader | C11: Small | D11: 5 | E11: 10266.3 | F11: 0 | H11: Potash [0-0-60] | I11: lb | J11: 100 | K11: 0.15 | M11: =J11*IF(OR(M15=0,M15=""),1,(1-B32)) -> 99.5 | N11: =M11*K11 -> 14.925 | AB11: =IF(C11=Calculate!C11,0,1) -> 0 | AC11: =IF(D11=Calculate!D11,0,1) -> 0 | AD11: =IF(E11=Calculate!E11,0,1) -> 0 | AE11: =IF(F11=Calculate!F11,0,1) -> 0 | AI11: =IF(J11=Calculate!J11,0,1) -> 1 | AJ11: =IF(K11=Calculate!K11,0,1) -> 0
B12: Aerator Rental | C12: 8 ft | D12: 5 | E12: 7860.6 | F12: 0 | H12: Gypsum | I12: ton | K12: 31 | M12: 1 | N12: =M12*K12 -> 31 | Q12: Rentals | AB12: =IF(C12=Calculate!C12,0,1) -> 1 | AC12: =IF(D12=Calculate!D12,0,1) -> 1 | AD12: =IF(E12=Calculate!E12,0,1) -> 1 | AE12: =IF(F12=Calculate!F12,0,1) -> 0 | AI12: =IF(M12=Calculate!M12,0,1) -> 1 | AJ12: =IF(K12=Calculate!K12,0,1) -> 0
H13: Manure Spreader | J13: 1 | M13: =J13 -> 1 | N13: =IF(Q15=TRUE,(E11/C16)*M13+Machinery!$AM$4,Machinery!$AM$4) -> 7.72 | Q13: FALSE | R13: << Aerator | AI13: =IF(J13=Calculate!J13,0,1) -> 0 | AP13: =IF(Q13=Calculate!Q13,0,1) -> 1
H14: Poultry Litter [3-3-3] | I14: ton | J14: 1 | K14: 20 | M14: =J14*IF(OR(M15=0,M15=""),1-IF(OR(M12=0,M12=""),0,B35),1-B32-IF(OR(M12=0,M12=""),0,B35)) -> 0.99 | N14: =M14*K14 -> 19.8 | Q14: FALSE | R14: << Fertilizer Spreader | AB14: =IF(C16=Calculate!C16,0,1) -> 0 | AI14: =IF(J14=Calculate!J14,0,1) -> 1 | AJ14: =IF(K14=Calculate!K14,0,1) -> 0 | AP14: =IF(Q14=Calculate!Q14,0,1) -> 1
H15: Aerator | M15: 1 | N15: =IF(Q13=TRUE,(E12/C16)*M15+Machinery!$AM$5,Machinery!$AM$5) -> 7.64 | Q15: FALSE | R15: << Manure Spreader | AB15: =IF(C17=Calculate!C17,0,1) -> 1 | AL15: =IF(M15=Calculate!M15,0,1) -> 0 | AP15: =IF(Q15=Calculate!Q15,0,1) -> 0
B16: =Calculate!B16 -> Area affected | C16: 300 | D16: =Calculate!D16 -> in acres | AB16: =IF(C18=Calculate!C18,0,1) -> 0
B17: =Calculate!B17 -> Exp. Hay Price | C17: 35 | D17: =Calculate!D17 -> per 1,200 lb. bale | AB17: =IF(C19=Calculate!C19,0,1) -> 0
B18: =Calculate!B18 -> Exp. Hay Yields | C18: 5 | D18: =Calculate!D18 -> bales/acre | AB18: =IF(C20=Calculate!C20,0,1) -> 0
B19: =Calculate!B19 -> Fuel Cost | C19: 1.75 | D19: =Calculate!D19 -> per gallon | AB19: =IF(C21=Calculate!C21,0,1) -> 0
B20: =Calculate!B20 -> Operator Labor | C20: 13.14 | D20: =Calculate!D20 -> per hour | X20: custom fertilizer | Y20: FALSE | AB20: =IF(C22=Calculate!C22,0,1) -> 0 | AX20: =IF(Y20=Calculate!Y20,0,1) -> 0
B21: =Calculate!B21 -> Hired Labor | C21: 9.06 | D21: =Calculate!D21 -> per hour | H21: Custom Fertilizer Name | J21: N | K21: P2O5 | L21: K2O | M21: App. Rate (lb/acre) | N21: Cost ($/lb) | AB21: =IF(C23=Calculate!C23,0,1) -> 0
B22: =Calculate!B22 -> Equipment Capital Recovery Rate | C22: 0.06 | H22: Ammonium Nitrate | J22: 34 | K22: 0 | L22: 0 | M22: 0 | N22: 0.28 | AG22: =IF(H22=Calculate!H22,0,1) -> 0 | AI22: =IF(J22=Calculate!J22,0,1) -> 0 | AJ22: =IF(K22=Calculate!K22,0,1) -> 0 | AK22: =IF(L22=Calculate!L22,0,1) -> 0 | AL22: =IF(M22=Calculate!M22,0,1) -> 0 | AM22: =IF(N22=Calculate!N22,0,1) -> 0
B23: =Calculate!B23 -> Operating Interest | C23: 0.0475 | H23: DAP | J23: 18 | K23: 46 | L23: 0 | M23: 0 | N23: 0.32 | AG23: =IF(H23=Calculate!H23,0,1) -> 0 | AI23: =IF(J23=Calculate!J23,0,1) -> 0 | AJ23: =IF(K23=Calculate!K23,0,1) -> 0 | AK23: =IF(L23=Calculate!L23,0,1) -> 0 | AL23: =IF(M23=Calculate!M23,0,1) -> 0 | AM23: =IF(N23=Calculate!N23,0,1) -> 0
H24: Custom Blend | J24: 13 | K24: 13 | L24: 13 | M24: 25 | N24: 0.2 | AG24: =IF(H24=Calculate!H24,0,1) -> 0 | AI24: =IF(J24=Calculate!J24,0,1) -> 0 | AJ24: =IF(K24=Calculate!K24,0,1) -> 0 | AK24: =IF(L24=Calculate!L24,0,1) -> 0 | AL24: =IF(M24=Calculate!M24,0,1) -> 0 | AM24: =IF(N24=Calculate!N24,0,1) -> 0
B28: =Calculate!B28 -> Expected Yield Increase
B29: 0.05 | AA29: =IF(B29=Calculate!B29,0,1) -> 0
B31: =Calculate!B31 -> Expected N & P Runoff Reduction from Aeration
B32: 0.005 | AA32: =IF(B32=Calculate!B32,0,1) -> 0
B34: =Calculate!B34 -> Expected P Runoff Reduction from Gypsum
B35: 0.005 | AA35: =IF(B35=Calculate!B35,0,1) -> 0
L36: =Calculate!L36 -> Farm Total ($) | M36: -10112.37
L38: =Calculate!L38 -> Expected Decrease in CEQ GHG Emissions (lbs/bale) | M38: -2.943072531
L39: =Calculate!L39 -> Farm Total Expected Decrease in CEQ GHG Emissions (tons) | M39: -8.592858054

Sheet Saved2
F2: Sample | X2: saved match counter | Y2: =SUM(AA2:AX35) -> 0 | AB2: =IF(F2=Calculate!F2,0,1) -> 0
B5: =Calculate!B5 -> Tractor | C5: =Calculate!C5 -> Purchase Price | D5: =Calculate!D5 -> Hours at Purchase | E5: =Calculate!E5 -> Expected Annual Use | H5: Benchmark Operation (before aeration) | M5: After Aeration
H6: Operation/ Operating Input | I6: Unit | J6: # of Trips/ Application Rate | K6: Unit Cost | M6: # of Trips/ Application Rate | N6: Total Cost ($/acre)
B7: 2 WD 50 | C7: 32200 | D7: 0 | E7: 600 | AA7: =IF(B7=Calculate!B7,0,1) -> 0 | AB7: =IF(C7=Calculate!C7,0,1) -> 0 | AC7: =IF(D7=Calculate!D7,0,1) -> 0 | AD7: =IF(E7=Calculate!E7,0,1) -> 0
B8: =Calculate!B8 -> Implement Rent | C8: =Calculate!C8 -> Width | D8: =Calculate!D8 -> Speed (mph) | E8: Purchase Price/ Rental Rate | F8: =Calculate!F8 -> Hours @ Purchase | H8: Fertilizer Spreader | J8: 1 | M8: =+J8+IF(M12>0,1,0) -> 2 | N8: 2.4 | Q8: FALSE | R8: << Modified Fert trips | AI8: =IF(J8=Calculate!J8,0,1) -> 0
H9: Urea [46-0-0] | I9: lb | J9: 65 | K9: 0.15 | M9: =J9*IF(OR(M15=0,M15=""),1,(1-B32)) -> 64.675 | N9: =M9*K9 -> 9.70125 | AI9: =IF(J9=Calculate!J9,0,1) -> 0 | AJ9: =IF(K9=Calculate!K9,0,1) -> 0
B10: Fertilizer Spreader Rental | C10: 40 ft | D10: 7 | E10: 0 | H10: Triple Superphosphate [0-45-0] | I10: lb | J10: 0 | K10: 0.22 | M10: =J10*IF(OR(M15=0,M15=""),1-IF(OR(M12=0,M12=""),0,B35),1-B32-IF(OR(M12=0,M12=""),0,B35)) -> 0 | N10: =M10*K10 -> 0 | AB10: =IF(C10=Calculate!C10,0,1) -> 0 | AC10: =IF(D10=Calculate!D10,0,1) -> 0 | AD10: =IF(E10=Calculate!E10,0,1) -> 0 | AE10: =IF(F10=Calculate!F10,0,1) -> 0 | AI10: =IF(J10=Calculate!J10,0,1) -> 0 | AJ10: =IF(K10=Calculate!K10,0,1) -> 0
B11: Manure Spreader | C11: Small | D11: 5 | E11: 10266.3 | F11: 0 | H11: Potash [0-0-60] | I11: lb | J11: 0 | K11: 0.15 | M11: =J11*IF(OR(M15=0,M15=""),1,(1-B32)) -> 0 | N11: =M11*K11 -> 0 | AB11: =IF(C11=Calculate!C11,0,1) -> 0 | AC11: =IF(D11=Calculate!D11,0,1) -> 0 | AD11: =IF(E11=Calculate!E11,0,1) -> 0 | AE11: =IF(F11=Calculate!F11,0,1) -> 0 | AI11: =IF(J11=Calculate!J11,0,1) -> 0 | AJ11: =IF(K11=Calculate!K11,0,1) -> 0
B12: Aerator Rental | C12: 10 ft | D12: 4 | E12: 200 | H12: Gypsum | I12: ton | K12: 31 | M12: 0.25 | N12: =M12*K12 -> 7.75 | Q12: Rentals | AB12: =IF(C12=Calculate!C12,0,1) -> 0 | AC12: =IF(D12=Calculate!D12,0,1) -> 0 | AD12: =IF(E12=Calculate!E12,0,1) -> 0 | AE12: =IF(F12=Calculate!F12,0,1) -> 0 | AI12: =IF(M12=Calculate!M12,0,1) -> 0 | AJ12: =IF(K12=Calculate!K12,0,1) -> 0
H13: Manure Spreader | J13: 1 | M13: =J13 -> 1 | N13: =IF(Q15=TRUE,(E11/C16)*M13+Machinery!$AM$4,Machinery!$AM$4) -> 7.72 | Q13: TRUE | R13: << Aerator | AI13: =IF(J13=Calculate!J13,0,1) -> 0 | AP13: =IF(Q13=Calculate!Q13,0,1) -> 0
H14: Poultry Litter [3-3-3] | I14: ton | J14: 2 | K14: 20 | M14: =J14*IF(OR(M15=0,M15=""),1-IF(OR(M12=0,M12=""),0,B35),1-B32-IF(OR(M12=0,M12=""),0,B35)) -> 1.98 | N14: =M14*K14 -> 39.6 | Q14: TRUE | R14: << Fertilizer Spreader | AB14: =IF(C16=Calculate!C16,0,1) -> 0 | AI14: =IF(J14=Calculate!J14,0,1) -> 0 | AJ14: =IF(K14=Calculate!K14,0,1) -> 0 | AP14: =IF(Q14=Calculate!Q14,0,1) -> 0
H15: Aerator | M15: 1 | N15: =IF(Q13=TRUE,(E12/C16)*M15+Machinery!$AM$5,Machinery!$AM$5) -> 8.306666667 | Q15: FALSE | R15: << Manure Spreader | AB15: =IF(C17=Calculate!C17,0,1) -> 0 | AL15: =IF(M15=Calculate!M15,0,1) -> 0 | AP15: =IF(Q15=Calculate!Q15,0,1) -> 0
B16: =Calculate!B16 -> Area affected | C16: 300 | D16: =Calculate!D16 -> in acres | AB16: =IF(C18=Calculate!C18,0,1) -> 0
B17: =Calculate!B17 -> Exp. Hay Price | C17: 30 | D17: =Calculate!D17 -> per 1,200 lb. bale | AB17: =IF(C19=Calculate!C19,0,1) -> 0
B18: =Calculate!B18 -> Exp. Hay Yields | C18: 5 | D18: =Calculate!D18 -> bales/acre | AB18: =IF(C20=Calculate!C20,0,1) -> 0
B19: =Calculate!B19 -> Fuel Cost | C19: 1.75 | D19: =Calculate!D19 -> per gallon | AB19: =IF(C21=Calculate!C21,0,1) -> 0
B20: =Calculate!B20 -> Operator Labor | C20: 13.14 | D20: =Calculate!D20 -> per hour | X20: custom fertilizer | Y20: FALSE | AB20: =IF(C22=Calculate!C22,0,1) -> 0 | AX20: =IF(Y20=Calculate!Y20,0,1) -> 0
B21: =Calculate!B21 -> Hired Labor | C21: 9.06 | D21: =Calculate!D21 -> per hour | H21: Custom Fertilizer Name | J21: N | K21: P2O5 | L21: K2O | M21: App. Rate (lb/acre) | N21: Cost ($/lb) | AB21: =IF(C23=Calculate!C23,0,1) -> 0
B22: =Calculate!B22 -> Equipment Capital Recovery Rate | C22: 0.06 | H22: Ammonium Nitrate | J22: 34 | K22: 0 | L22: 0 | M22: 0 | N22: 0.28 | AG22: =IF(H22=Calculate!H22,0,1) -> 0 | AI22: =IF(J22=Calculate!J22,0,1) -> 0 | AJ22: =IF(K22=Calculate!K22,0,1) -> 0 | AK22: =IF(L22=Calculate!L22,0,1) -> 0 | AL22: =IF(M22=Calculate!M22,0,1) -> 0 | AM22: =IF(N22=Calculate!N22,0,1) -> 0
B23: =Calculate!B23 -> Operating Interest | C23: 0.0475 | H23: DAP | J23: 18 | K23: 46 | L23: 0 | M23: 0 | N23: 0.32 | AG23: =IF(H23=Calculate!H23,0,1) -> 0 | AI23: =IF(J23=Calculate!J23,0,1) -> 0 | AJ23: =IF(K23=Calculate!K23,0,1) -> 0 | AK23: =IF(L23=Calculate!L23,0,1) -> 0 | AL23: =IF(M23=Calculate!M23,0,1) -> 0 | AM23: =IF(N23=Calculate!N23,0,1) -> 0
H24: Custom Blend | J24: 13 | K24: 13 | L24: 13 | M24: 25 | N24: 0.2 | AG24: =IF(H24=Calculate!H24,0,1) -> 0 | AI24: =IF(J24=Calculate!J24,0,1) -> 0 | AJ24: =IF(K24=Calculate!K24,0,1) -> 0 | AK24: =IF(L24=Calculate!L24,0,1) -> 0 | AL24: =IF(M24=Calculate!M24,0,1) -> 0 | AM24: =IF(N24=Calculate!N24,0,1) -> 0
B28: =Calculate!B28 -> Expected Yield Increase
B29: 0.05 | AA29: =IF(B29=Calculate!B29,0,1) -> 0
B31: =Calculate!B31 -> Expected N & P Runoff Reduction from Aeration
B32: 0.005 | AA32: =IF(B32=Calculate!B32,0,1) -> 0
B34: =Calculate!B34 -> Expected P Runoff Reduction from Gypsum
B35: 0.005 | AA35: =IF(B35=Calculate!B35,0,1) -> 0
L36: =Calculate!L36 -> Farm Total ($) | M36: -2767.52
L38: =Calculate!L38 -> Expected Decrease in CEQ GHG Emissions (lbs/bale) | M38: 8.777860367
L39: =Calculate!L39 -> Farm Total Expected Decrease in CEQ GHG Emissions (tons) | M39: -1.396210526

Sheet SavedTemp
C2: Default Saved | F2: Sample | J2: Karen
B7: 2 WD 50 | C7: 32200 | D7: 0 | E7: 600
J8: 1 | M8: =+J8+IF(M12>0,1,0) -> 1 | Q8: FALSE
J9: 65 | K9: 0.15 | M9: 64.675 | N9: 9.7
B10: Fertilizer Spreader Rental | C10: 40 ft | D10: 7 | E10: 0 | J10: 0 | K10: 0.22 | M10: 0 | N10: 0
B11: Manure Spreader | C11: Small | D11: 5 | E11: 10266.3 | F11: 0 | J11: 0 | K11: 0.15 | M11: 0 | N11: 0
B12: Aerator Rental | C12: 10 ft | D12: 4 | E12: 200 | K12: 31 | M12: 0 | N12: 0
J13: 1 | M13: 1 | N13: 7.72 | Q13: TRUE
J14: 2 | K14: 20 | M14: 1.99 | N14: 39.8 | Q14: TRUE
M15: 1 | N15: 8.31 | Q15: FALSE
C16: 300
C17: 30
C18: 5
C19: 1.75
C20: 13.14 | Y20: FALSE
C21: 9.06
C22: 0.06 | H22: Ammonium Nitrate | J22: 34 | K22: 0 | L22: 0 | M22: 0 | N22: 0.28
C23: 0.0475 | H23: DAP | J23: 18 | K23: 46 | L23: 0 | M23: 0 | N23: 0.32
H24: Custom Blend | J24: 13 | K24: 13 | L24: 13 | M24: 25 | N24: 0.2
B29: 0.05
B32: 0.005
B35: 0.005
M36: -140.17
M38: 10.61639494
M39: 0.05163544784

Sheet Compare
A3: Pasture Aeration and Fertilization Payoff Comparison
B7: Operation Parameters | C7: =Saved1!C2 -> Default Saved | G7: =Saved2!F2 -> Sample
B8: =Saved1!B16 -> Area affected | C8: =Saved1!C16 -> 300 | D8: =Saved1!D16 -> in acres | G8: =Saved2!C16 -> 300 | H8: =Saved2!D16 -> in acres | L8: Yes
B9: =Saved1!B17 -> Exp. Hay Price | C9: =Saved1!C17 -> 35 | D9: =Saved1!D17 -> per 1,200 lb. bale | G9: =Saved2!C17 -> 30 | H9: =Saved2!D17 -> per 1,200 lb. bale | L9: No
B10: =Saved1!B18 -> Exp. Hay Yields | C10: =Saved1!C18 -> 5 | D10: =Saved1!D18 -> bales/acre | G10: =Saved2!C18 -> 5 | H10: =Saved2!D18 -> bales/acre
B11: =Saved1!B19 -> Fuel Cost | C11: =Saved1!C19 -> 1.75 | D11: =Saved1!D19 -> per gallon | G11: =Saved2!C19 -> 1.75 | H11: =Saved2!D19 -> per gallon
B12: =Saved1!B20 -> Operator Labor | C12: =Saved1!C20 -> 13.14 | D12: =Saved1!D20 -> per hour | G12: =Saved2!C20 -> 13.14 | H12: =Saved2!D20 -> per hour
B13: =Saved1!B21 -> Hired Labor | C13: =Saved1!C21 -> 9.06 | D13: =Saved1!D21 -> per hour | G13: =Saved2!C21 -> 9.06 | H13: =Saved2!D21 -> per hour
B14: =Saved1!B22 -> Equipment Capital Recovery Rate | C14: =Saved1!C22 -> 0.06 | G14: =Saved2!C22 -> 0.06
B15: =Saved1!B23 -> Operating Interest | C15: =Saved1!C23 -> 0.0475 | G15: =Saved2!C23 -> 0.0475
B17: Machinery Selection | C17: =Calculate!C8 -> Width | D17: Purchase Price/ Rental Rate | E17: Rental (Y/N) | G17: =Calculate!C8 -> Width | H17: Purchase Price/ Rental Rate | I17: Rental (Y/N)
B18: =Calculate!B5 -> Tractor | C18: =Calculate!B7 -> 2 WD 50 | D18: =Saved1!C7 -> 39100 | G18: =Saved2!B7 -> 2 WD 50 | H18: =Saved2!C7 -> 32200
B19: =Defaults!B32 -> Fertilizer Spreader | C19: =Saved1!C10 -> 40 ft | D19: =Saved1!E10 -> 11800 | E19: =IF(Saved1!Q14=TRUE,L8,L9) -> No | G19: =Saved2!C10 -> 40 ft | H19: =Saved2!E10 -> 0 | I19: =IF(Saved2!Q14=TRUE,L8,L9) -> Yes
B20: =Defaults!B33 -> Manure Spreader | C20: =Saved1!C11 -> Small | D20: =Saved1!E11 -> 10266.3 | E20: =IF(Saved1!Q15=TRUE,L8,L9) -> No | G20: =Saved2!C11 -> Small | H20: =Saved2!E11 -> 10266.3 | I20: =IF(Saved2!Q15=TRUE,L8,L9) -> No
B21: =Defaults!B36 -> Aerator | C21: =Saved1!C12 -> 8 ft | D21: =Saved1!E12 -> 7860.6 | E21: =IF(Saved1!Q13=TRUE,L8,L9) -> No | G21: =Saved2!C12 -> 10 ft | H21: =Saved2!E12 -> 200 | I21: =IF(Saved2!Q13=TRUE,L8,L9) -> Yes
B23: Operation/ Operating Input | C23: =Calculate!J6 -> # of Trips/ App. Rate | D23: Total Cost ($/acre) | G23: =Calculate!J6 -> # of Trips/ App. Rate | H23: Total Cost ($/acre)
B24: =Calculate!H8 -> Fertilizer Spreader | C24: =Saved1!M8 -> 2 | D24: =Saved1!N8 -> 5.82 | G24: =Saved2!M8 -> 2 | H24: =Saved2!N8 -> 2.4
B25: =Calculate!H9 -> Urea [46-0-0] | C25: =Saved1!M9 -> 199 | D25: =Saved1!N9 -> 29.85 | G25: =Saved2!M9 -> 64.675 | H25: =Saved2!N9 -> 9.70125
B26: =Calculate!H10 -> Triple Superphosphate [0-45-0] | C26: =Saved1!M10 -> 108.9 | D26: =Saved1!N10 -> 23.958 | G26: =Saved2!M10 -> 0 | H26: =Saved2!N10 -> 0
B27: =Calculate!H11 -> Potash [0-0-60] | C27: =Saved1!M11 -> 99.5 | D27: =Saved1!N11 -> 14.925 | G27: =Saved2!M11 -> 0 | H27: =Saved2!N11 -> 0
B28: =Calculate!H12 -> Gypsum | C28: =Saved1!M12 -> 1 | D28: =Saved1!N12 -> 31 | G28: =Saved2!M12 -> 0.25 | H28: =Saved2!N12 -> 7.75
B29: =Calculate!H13 -> Manure Spreader | C29: =Saved1!M13 -> 1 | D29: =Saved1!N13 -> 7.72 | G29: =Saved2!M13 -> 1 | H29: =Saved2!N13 -> 7.72
B30: =Calculate!H14 -> Poultry Litter [3-3-3] | C30: =Saved1!M14 -> 0.99 | D30: =Saved1!N14 -> 19.8 | G30: =Saved2!M14 -> 1.98 | H30: =Saved2!N14 -> 39.6
B31: =Calculate!H15 -> Aerator | C31: =Saved1!M15 -> 1 | D31: =Saved1!N15 -> 7.64 | G31: =Saved2!M15 -> 1 | H31: =Saved2!N15 -> 8.306666667
C32: Breakeven (holding other effects at zero) | D32: Current User Expectation | G32: Breakeven (holding other effects at zero) | H32: Current User Expectation
B33: Yield Increase | C33: 0.249901648 | D33: =+Saved1!B29 -> 0.05 | G33: 0.05647105257 | H33: =+Saved2!B29 -> 0.05
B34: N, P, & K Runoff Reduction from Aeration | C34: 0.2642169686 | D34: =+Saved1!B32 -> 0.005 | G34: 0.08413314916 | H34: =+Saved2!B32 -> 0.005
B35: P Runoff Reduction from Gypsum | C35: 0.4796565772 | D35: =+Saved1!B35 -> 0.005 | G35: 0 | H35: =+Saved2!B35 -> 0.005
B37: =Saved1!L36 -> Farm Total ($) | D37: =Saved1!M36 -> -10112.37 | H37: =Saved2!M36 -> -2767.52
B38: Expected Decrease in CEQ GHG Emissions (lbs/bale) | D38: =Saved1!M38 -> -2.943072531 | H38: =Saved2!M38 -> 8.777860367
B39: Farm Total Exp. Decrease in CEQ GHG Emissions (tons) | D39: =Saved1!M39 -> -8.592858054 | H39: =Saved2!M39 -> -1.396210526
B41: Disclaimer: The information provided within represents estimates that are a result of a set of complex calculations that are described in more detail in the accompanying publication. Changes in parameter values and its implications on returns and GHG emissions are estimates and the user should use their own reasonable judgment to reflect whether the direction of change in returns and GHG emissions is appropriate before acting on the results. As such, this software is provided ‘as is’ and without warranties as to performance of merchantability. Further, statements may have been made to you about this software. Any such statements do not constitute warranties and shall not be relied on by the user in deciding whether to use the program or act on its results. This program is provided without any expressed or implied warranties whatsoever. Because the diversity of conditions and hardware under which this program may be used, no warranty of merchantability or warranty of fitness for a particular purpose is offered. The user is advised to test the program thoroughly before relying on it. The user assumes the entire risk of using the program. The University of Arkansas will not be liable for any claim or damage brought against the user by any third party, nor will the University of Arkansas be liable for any consequential, indirect or special damages suffered by the user as a result of the software.

Sheet Defaults
L2: Labor Rates
B3: Operation/ Operating Input | D3: Unit | E3: # of trips/ Quantity | F3: Unit Cost | G3: # of trips/ Quantity | L3: Operator | M3: 13.14 | N3: per hour
L4: Hired Labor | M4: 9.06 | N4: per hour
B5: Fertilizer Spreader | E5: 1 | F5: ="" ->  | G5: =Calculate!J8+IF(Calculate!M12>0,1,0) -> 2 | I5: Exp. Hay Price
B6: Urea [46-0-0] | D6: lb | E6: =F16 -> 200 | F6: 0.15 | I6: 35 | J6: per bale | L6: Interest Rates
B7: Triple Superphosphate [0-45-0] | D7: lb | E7: =F17 -> 110 | F7: 0.22 | L7: Ammoritization | M7: 0.06
B8: Potash [0-0-60] | D8: lb | E8: =F18 -> 100 | F8: 0.15 | I8: Exp. Hay Yields | L8: Operating | M8: 0.0475
B9: Gypsum | D9: ton | E9: 1 | F9: =31 -> 31 | I9: 5 | J9: bales/acre
B10: Manure Spreader | D10: ="" ->  | E10: 1 | F10: ="" ->  | L10: Fuel Cost
B11: Poultry Litter [3-3-3] | D11: ton | E11: 1 | F11: 20 | L11: 1.75 | M11: per gallon
B12: Aerator | D12: ="" ->  | E12: 1 | F12: ="" -> 
K13: Input | L13: lbs of C Eq. per Input Unit
B15: Our Budget Spec | F15: w/rounding | K15: Urea [46-0-0] | L15: 1.208167659
B16: Urea | C16: 92 | D16: =+C16/0.46 -> 200 | E16: lbs of Urea fertilizer | F16: =ROUND(D16,0) -> 200 | G16: Use Urea (46-0-0) to add remaining N | K16: Triple Superphosphate [0-45-0] | L16: 0.6324478338
B17: Phosphate | C17: 50 | D17: =+C17/0.45 -> 111.1111111 | E17: lbs of TSP needed to apply 10 lbs of P2O5 also delivers | F17: =ROUND(D17,-1) -> 110 | G17: Use TSP (0-45-0) to add P | K17: Potash[0-0-60] | L17: 0.1083607598
B18: Potash | C18: 60 | D18: =C18/0.6 -> 100 | E18: lbs of potash fertilizer | F18: =ROUND(D18,0) -> 100 | G18: Use Potash (0-0-60) | K18: Poultry Litter [3-3-3] | L18: 0.257326461
K19: Gypsum | L19: 0.02959767142
L20: Exp. Carbon Footprint (lbs/acre)
A21: 30 | B21: Tractors | C21: Suggested Price | D21: Hours at Purchase (New) | E21: HP | F21: Estimated UL Hours | G21: Estimated UL Years | H21: Adj. Operating Years for Used Tractor | I21: RV | J21: SV | K21: Fuel | L21: Standard Use Hours | N21: C1 | O21: C2 | P21: C3 | Q21: Repair Factor (% of list price)
A22: 1 | B22: 2 WD 50 | C22: 32200 | D22: 0 | E22: 50 | F22: 12000 | G22: =IF(F22/L22>$A$21,$A$21,F22/L22) -> 20 | H22: =IF((F22-D22)/L22>$A$21,$A$21,(F22-D22)/L22) -> 20 | I22: =(VLOOKUP(B22,$M$22:$P$29,2,FALSE)-(VLOOKUP(B22,$M$22:$P$29,3,FALSE)*G22^0.5)-VLOOKUP(B22,$M$22:$P$29,4,FALSE)*L22^0.5)^2 -> 0.1789467251 | J22: =C22*(I22) -> 5762.084547 | K22: =0.044*E22 -> 2.2 | L22: 600 | M22: =B22 -> 2 WD 50 | N22: 0.981 | O22: 0.093 | P22: 0.0058 | Q22: 1
A23: 2 | B23: MFWD 50 | C23: 39100 | D23: 0 | E23: 50 | F23: 16000 | G23: =IF(F23/L23>$A$21,$A$21,F23/L23) -> 26.66666667 | H23: =IF((F23-D23)/L23>$A$21,$A$21,(F23-D23)/L23) -> 26.66666667 | I23: =(VLOOKUP(B23,$M$22:$P$29,2,FALSE)-(VLOOKUP(B23,$M$22:$P$29,3,FALSE)*G23^0.5)-VLOOKUP(B23,$M$22:$P$29,4,FALSE)*L23^0.5)^2 -> 0.1286510985 | J23: 5030.257951 | K23: 2.2 | L23: 600 | M23: MFWD 50 | N23: 0.981 | O23: 0.093 | P23: 0.0058 | Q23: 0.8
A24: 3 | B24: 2 WD 75 | C24: 48300 | D24: 0 | E24: 75 | F24: 12000 | G24: 20 | H24: 20 | I24: 0.1789467251 | J24: 8643.126821 | K24: 3.3 | L24: 600 | M24: 2 WD 75 | N24: 0.981 | O24: 0.093 | P24: 0.0058 | Q24: 1
A25: 4 | B25: MFWD 75 | C25: 54100 | D25: 0 | E25: 75 | F25: 16000 | G25: 26.66666667 | H25: 26.66666667 | I25: 0.1286510985 | J25: 6960.024428 | K25: 3.3 | L25: 600 | M25: MFWD 75 | N25: 0.981 | O25: 0.093 | P25: 0.0058 | Q25: 0.8
A26: 5 | B26: 2 WD 105 | C26: 63300 | D26: 0 | E26: 105 | F26: 12000 | G26: 20 | H26: 20 | I26: 0.2258059985 | J26: 14293.51971 | K26: 4.62 | L26: 600 | M26: 2 WD 105 | N26: 0.942 | O26: 0.1 | P26: 0.0008 | Q26: 1
A27: 6 | B27: MFWD 105 | C27: 77400 | D27: 0 | E27: 105 | F27: 16000 | G27: 26.66666667 | H27: 26.66666667 | I27: 0.1648411177 | J27: 12758.70251 | K27: 4.62 | L27: 600 | M27: MFWD 105 | N27: 0.942 | O27: 0.1 | P27: 0.0008 | Q27: 0.8
A28: 7 | B28: 2 WD 130 | C28: 103000 | D28: 0 | E28: 130 | F28: 12000 | G28: 20 | H28: 20 | I28: 0.2258059985 | J28: 23258.01785 | K28: 5.72 | L28: 600 | M28: 2 WD 130 | N28: 0.942 | O28: 0.1 | P28: 0.0008 | Q28: 1
A29: 8 | B29: MFWD 130 | C29: 123000 | D29: 0 | E29: 130 | F29: 16000 | G29: 26.66666667 | H29: 26.66666667 | I29: 0.1648411177 | J29: 20275.45748 | K29: 5.72 | L29: 600 | M29: MFWD 130 | N29: 0.942 | O29: 0.1 | P29: 0.0008 | Q29: 0.8
A31: Standards | B31: Implement | C31: Size/HP | D31: Implement Suggested (list) Purchase Price | E31: Implement Standard Estimated UL Hours | F31: Implement Standard Annual Use Hours | G31: Implement Repair Factor (% of list price) | H31: Implement Field Efficiency (%) | I31: Implement Field Speed (mph) | J31: Tractor Requirements | K31: C1 | L31: C2 | M31: C3
B32: Fertilizer Spreader | C32: 40 ft | D32: 11800 | E32: 1200 | F32: 100 | G32: 0.8 | H32: 0.7 | I32: 7 | J32: 50 | K32: 0.943 | L32: 0.111 | M32: 0
B33: Manure Spreader | C33: Small | D33: =11407*0.9 -> 10266.3 | E33: 2000 | F33: =F32 -> 100 | G33: 0.5 | H33: 0.65 | I33: 5 | J33: 50 | K33: 0.943 | L33: 0.111 | M33: 0
C34: Medium | D34: =13361*0.9 -> 12024.9 | E34: 2000 | F34: 100 | G34: 0.5 | H34: 0.7 | I34: 5 | J34: 75 | K34: 0.943 | L34: 0.111 | M34: 0
C35: Large | D35: =19175*0.9 -> 17257.5 | E35: 2000 | F35: 100 | G35: 0.5 | H35: 0.75 | I35: 5 | J35: 100 | K35: 0.943 | L35: 0.111 | M35: 0
B36: Aerator | C36: 6 ft | D36: =6528*0.9 -> 5875.2 | E36: 2000 | F36: =F33 -> 100 | G36: 0.5 | H36: 0.65 | I36: 5 | J36: 40 | K36: 0.943 | L36: 0.111 | M36: 0
C37: 8 ft | D37: =8734*0.9 -> 7860.6 | E37: =E36 -> 2000 | F37: 100 | G37: =G36 -> 0.5 | H37: 0.65 | I37: 5 | J37: 50 | K37: 0.943 | L37: 0.111 | M37: 0
C38: 10 ft | D38: =9377*0.9 -> 8439.3 | E38: 2000 | F38: 100 | G38: 0.5 | H38: 0.65 | I38: 5 | J38: 75 | K38: 0.943 | L38: 0.111 | M38: 0
C39: 12 ft | D39: =10935*0.9 -> 9841.5 | E39: 2000 | F39: 100 | G39: 0.5 | H39: 0.65 | I39: 5 | J39: 100 | K39: 0.943 | L39: 0.111 | M39: 0
C40: 15 ft | D40: =14683*0.9 -> 13214.7 | E40: 2000 | F40: 100 | G40: 0.5 | H40: 0.65 | I40: 5 | J40: 130 | K40: 0.943 | L40: 0.111 | M40: 0
B41: Aerator Rental | C41: 0
B42: Fertilizer Spreader Rental | C42: 0
B43: Manure Spreader Rental | C43: 0

Sheet Machinery (hidden)
B2: Implement | C2: Size/HP | D2: Implement Suggested (list) Purchase Price | E2: Implement Hours at Purchase | F2: Implement Standard Estimated UL Hours | G2: Implement Acre-based Operating Years | H2: Implement Expected SV | I2: Implement Repair Factor (% of list price) | J2: Implement Field Efficiency (%) | K2: Implement Field Speed (mph) | L2: Tractor Requirements | M2: C1 | N2: C2 | O2: C3 | P2: Implement RV | Q2: Implement Hours/Acre | R2: Implement Acres/Hour | S2: Implement Acre-based Annual Use Hours | T2: Implement Capital Recovery ($/hr) | U2: Implement R&M ($/hr) | V2: Selected Tractor Size | W2: Tractor PP | X2: Tractor Hrs at Purchase | Y2: Tractor HP | Z2: Tractor Est. UL Hours | AA2: Tractor Est. UL Years | AB2: Tractor RV | AC2: Tractor SV | AD2: Tractor Annual Use Hrs | AE2: Tractor Fuel Use (gal/hr) | AF2: Tractor Capital Recovery ($/hr) | AG2: Tractor R&M ($/hr) | AH2: Combined Capital Recovery ($/hr) | AI2: Combined R&M ($/hr) | AJ2: Labor ($/hr) | AK2: Fuel ($/hr) | AL2: Cost/Unit ($/acre) | AM2: Total Cost ($/acre)
A3: =LEFT($C$3,SEARCH(" ",$C$3,1)) -> 40 | B3: =Defaults!B32 -> Fertilizer Spreader | C3: =Calculate!$C$10 -> 40 ft | D3: =IF(Calculate!Q14,0,Calculate!$E$10) -> 0 | E3: =Calculate!$F$10 -> 0 | F3: =VLOOKUP(C3,Defaults!C32:E32,3,FALSE) -> 1200 | G3: =IF((F3-E3)/S3>Defaults!$A$21,Defaults!$A$21,(F3-E3)/S3) -> 30 | H3: =D3*P3 -> 0 | I3: =VLOOKUP($C$3,Defaults!$C$32:G32,5,FALSE) -> 0.8 | J3: =VLOOKUP($C$3,Defaults!$C$32:H32,6,FALSE) -> 0.7 | K3: =+Calculate!D10 -> 7 | L3: =VLOOKUP($C$3,Defaults!$C$32:J32,8,FALSE) -> 50 | M3: =VLOOKUP($C$3,Defaults!$C$32:K32,9,FALSE) -> 0.943 | N3: =VLOOKUP($C$3,Defaults!$C$32:L32,10,FALSE) -> 0.111 | O3: =VLOOKUP($C$3,Defaults!$C$32:M32,11,FALSE) -> 0 | P3: =(M3-N3*G3^0.5-O3*S3^0.5)^2 -> 0.1122437348 | Q3: =(1/((5280/43560)*A3*J3*K3)) -> 0.04209183673 | R3: =1/Q3 -> 23.75757576 | S3: =Calculate!$J$8*Q3*Calculate!$C$16 -> 12.62755102 | T3: =IFERROR((((D3-H3)*(Calculate!$C$22/(1-((1+Calculate!$C$22)^(-G3))))+((H3*Calculate!$C$22)))/S3),0) -> 0 | U3: =I3*D3/F3 -> 0 | V3: =Calculate!$B$7 -> 2 WD 50 | W3: =+Calculate!$C$7 -> 32200 | X3: =Calculate!$D$7 -> 0 | Y3: =VLOOKUP(V3,Defaults!$B$22:$Q$29,4,FALSE) -> 50 | Z3: =VLOOKUP(V3,Defaults!$B$22:$Q$29,5,FALSE) -> 12000 | AA3: =IF((Z3-X3)/AD3>Defaults!$A$21,Defaults!$A$21,(Z3-X3)/AD3) -> 20 | AB3: =(VLOOKUP(V3,Defaults!$M$22:$P$29,2,FALSE)-VLOOKUP(V3,Defaults!$M$22:$P$29,3,FALSE)*AA3^0.5-VLOOKUP(V3,Defaults!$M$22:$P$29,4,FALSE)*AD3^0.5)^2 -> 0.1789467251 | AC3: =W3*AB3 -> 5762.084547 | AD3: =Calculate!$E$7 -> 600 | AE3: =0.044*Y3 -> 2.2 | AF3: =IFERROR((((W3-AC3)*(Calculate!$C$22/(1-((1+Calculate!$C$22)^(-AA3))))+((AC3*Calculate!$C$22)))/AD3),0) -> 4.417838365 | AG3: =IFERROR(VLOOKUP(V3,Defaults!$B$22:$Q$29,16,FALSE)*W3/Z3,0) -> 2.683333333 | AH3: =T3+AF3 -> 4.417838365 | AI3: 2.683333333 | AJ3: =Calculate!$C$20+Calculate!$C$21*(1.5-1) -> 17.67 | AK3: =AE3*Calculate!$C$19 -> 3.85 | AL3: =ROUND(1/R3*(1*Calculate!$C$20+(1.5-1)*Calculate!$C$21),2)+ROUND(AE3*Calculate!$C$19/R3,2)+ROUND(AI3/R3,2)+ROUND(AH3/R3,2) -> 1.2 | AM3: =AL3*Calculate!$J$8 -> 1.2
A4: 15 | B4: =Defaults!B33 -> Manure Spreader | C4: =Calculate!$C$11 -> Small | D4: =IF(Calculate!Q15,0,Calculate!$E$11) -> 10266.3 | E4: =Calculate!$F$11 -> 0 | F4: =VLOOKUP(C4,Defaults!C33:E35,3,FALSE) -> 2000 | G4: =IF((F4-E4)/S4>Defaults!$A$21,Defaults!$A$21,(F4-E4)/S4) -> 30 | H4: =D4*P4 -> 1152.327854 | I4: =VLOOKUP($C$4,Defaults!$C$33:G35,5,FALSE) -> 0.5 | J4: =VLOOKUP($C$4,Defaults!$C$33:H35,6,FALSE) -> 0.65 | K4: =+Calculate!D11 -> 5 | L4: =VLOOKUP($C$4,Defaults!$C$33:J35,8,FALSE) -> 50 | M4: =VLOOKUP($C$4,Defaults!$C$33:K35,9,FALSE) -> 0.943 | N4: =VLOOKUP($C$4,Defaults!$C$33:L35,10,FALSE) -> 0.111 | O4: =VLOOKUP($C$4,Defaults!$C$33:M35,11,FALSE) -> 0 | P4: =(M4-N4*G4^0.5-O4*S4^0.5)^2 -> 0.1122437348 | Q4: =(1/((5280/43560)*A4*J4*K4)) -> 0.1692307692 | R4: =1/Q4 -> 5.909090909 | S4: =Calculate!$J$13*Q4*Calculate!$C$16 -> 50.76923077 | T4: =IFERROR((((D4-H4)*(Calculate!$C$22/(1-((1+Calculate!$C$22)^(-G4))))+((H4*Calculate!$C$22)))/S4),0) -> 14.40360265 | U4: =I4*D4/F4 -> 2.566575 | V4: =Calculate!$B$7 -> 2 WD 50 | W4: =+Calculate!$C$7 -> 32200 | X4: =Calculate!$D$7 -> 0 | Y4: =VLOOKUP(V4,Defaults!$B$22:$Q$29,4,FALSE) -> 50 | Z4: =VLOOKUP(V4,Defaults!$B$22:$Q$29,5,FALSE) -> 12000 | AA4: =IF((Z4-X4)/AD4>Defaults!$A$21,Defaults!$A$21,(Z4-X4)/AD4) -> 20 | AB4: =(VLOOKUP(V4,Defaults!$M$22:$P$29,2,FALSE)-VLOOKUP(V4,Defaults!$M$22:$P$29,3,FALSE)*AA4^0.5-VLOOKUP(V4,Defaults!$M$22:$P$29,4,FALSE)*AD4^0.5)^2 -> 0.1789467251 | AC4: =W4*AB4 -> 5762.084547 | AD4: =Calculate!$E$7 -> 600 | AE4: =0.044*Y4 -> 2.2 | AF4: =IFERROR((((W4-AC4)*(Calculate!$C$22/(1-((1+Calculate!$C$22)^(-AA4))))+((AC4*Calculate!$C$22)))/AD4),0) -> 4.417838365 | AG4: =IFERROR(VLOOKUP(V4,Defaults!$B$22:$Q$29,16,FALSE)*W4/Z4,0) -> 2.683333333 | AH4: 18.82144102 | AI4: 5.249908333 | AJ4: =Calculate!$C$20 -> 13.14 | AK4: =AE4*Calculate!$C$19 -> 3.85 | AL4: =ROUND(1/R4*(1*Calculate!$C$20+(1.5-1)*Calculate!$C$21),2)+ROUND(AE4*Calculate!$C$19/R4,2)+ROUND(AI4/R4,2)+ROUND(AH4/R4,2) -> 7.72 | AM4: =AL4*Calculate!$J$13 -> 7.72
A5: =LEFT($C$5,SEARCH(" ",$C$5,1)) -> 10 | B5: =Defaults!B36 -> Aerator | C5: =Calculate!$C$12 -> 10 ft | D5: =IF(Calculate!Q13,0,Calculate!$E$12) -> 0 | E5: =Calculate!$F$12 -> 0 | F5: =VLOOKUP(C5,Defaults!C36:E40,3,FALSE) -> 2000 | G5: =IF((F5-E5)/S5>Defaults!$A$21,Defaults!$A$21,(F5-E5)/S5) -> 21.01010101 | H5: =D5*P5 -> 0 | I5: =VLOOKUP($C$5,Defaults!$C$36:G40,5,FALSE) -> 0.5 | J5: =VLOOKUP($C$5,Defaults!$C$36:H40,6,FALSE) -> 0.65 | K5: =+Calculate!D12 -> 4 | L5: =VLOOKUP($C$5,Defaults!$C$36:J40,8,FALSE) -> 75 | M5: =VLOOKUP($C$5,Defaults!$C$36:K40,9,FALSE) -> 0.943 | N5: =VLOOKUP($C$5,Defaults!$C$36:L40,10,FALSE) -> 0.111 | O5: =VLOOKUP($C$5,Defaults!$C$36:M40,11,FALSE) -> 0 | P5: 0.1885398684 | Q5: =(1/((5280/43560)*A5*J5*K5)) -> 0.3173076923 | R5: =1/Q5 -> 3.151515152 | S5: =Calculate!$M$15*Q5*Calculate!$C$16 -> 95.19230769 | T5: =IFERROR((((D5-H5)*(Calculate!$C$22/(1-((1+Calculate!$C$22)^(-G5))))+((H5*Calculate!$C$22)))/S5),0) -> 0 | U5: =I5*D5/F5 -> 0 | V5: =Calculate!$B$7 -> 2 WD 50 | W5: =+Calculate!$C$7 -> 32200 | X5: =Calculate!$D$7 -> 0 | Y5: =VLOOKUP(V5,Defaults!$B$22:$Q$29,4,FALSE) -> 50 | Z5: =VLOOKUP(V5,Defaults!$B$22:$Q$29,5,FALSE) -> 12000 | AA5: =IF((Z5-X5)/AD5>Defaults!$A$21,Defaults!$A$21,(Z5-X5)/AD5) -> 20 | AB5: =(VLOOKUP(V5,Defaults!$M$22:$P$29,2,FALSE)-VLOOKUP(V5,Defaults!$M$22:$P$29,3,FALSE)*AA5^0.5-VLOOKUP(V5,Defaults!$M$22:$P$29,4,FALSE)*AD5^0.5)^2 -> 0.1789467251 | AC5: =W5*AB5 -> 5762.084547 | AD5: =Calculate!$E$7 -> 600 | AE5: =0.044*Y5 -> 2.2 | AF5: =IFERROR((((W5-AC5)*(Calculate!$C$22/(1-((1+Calculate!$C$22)^(-AA5))))+((AC5*Calculate!$C$22)))/AD5),0) -> 4.417838365 | AG5: =IFERROR(VLOOKUP(V5,Defaults!$B$22:$Q$29,16,FALSE)*W5/Z5,0) -> 2.683333333 | AH5: 4.417838365 | AI5: 2.683333333 | AJ5: =Calculate!$C$20 -> 13.14 | AK5: =AE5*Calculate!$C$19 -> 3.85 | AL5: =ROUND(1/R5*Calculate!$C$20,2)+ROUND(AE5*Calculate!$C$19/R5,2)+ROUND(AI5/R5,2)+ROUND(AH5/R5,2) -> 7.64 | AM5: =AL5*Calculate!$M$15 -> 7.64
A6: =LEFT($C$6,SEARCH(" ",$C$6,1)) -> 40 | B6: =Defaults!B32 -> Fertilizer Spreader | C6: =Calculate!$C$10 -> 40 ft | D6: =IF(Calculate!Q14,0,Calculate!$E$10) -> 0 | E6: =Calculate!$F$10 -> 0 | F6: =VLOOKUP(C3,Defaults!C32:E32,3,FALSE) -> 1200 | G6: =IF((F6-E6)/S6>Defaults!$A$21,Defaults!$A$21,(F6-E6)/S6) -> 30 | H6: =D6*P6 -> 0 | I6: =VLOOKUP($C$3,Defaults!$C$32:G32,5,FALSE) -> 0.8 | J6: =VLOOKUP($C$3,Defaults!$C$32:H32,6,FALSE) -> 0.7 | K6: =+Calculate!D10 -> 7 | L6: =VLOOKUP($C$3,Defaults!$C$32:J32,8,FALSE) -> 50 | M6: =VLOOKUP($C$3,Defaults!$C$32:K32,9,FALSE) -> 0.943 | N6: =VLOOKUP($C$3,Defaults!$C$32:L32,10,FALSE) -> 0.111 | O6: =VLOOKUP($C$3,Defaults!$C$32:M32,11,FALSE) -> 0 | P6: =(M6-N6*G6^0.5-O6*S6^0.5)^2 -> 0.1122437348 | Q6: =(1/((5280/43560)*A6*J6*K6)) -> 0.04209183673 | R6: =1/Q6 -> 23.75757576 | S6: =Calculate!$M$8*Q6*Calculate!$C$16 -> 25.25510204 | T6: =IFERROR((((D6-H6)*(Calculate!$C$22/(1-((1+Calculate!$C$22)^(-G6))))+((H6*Calculate!$C$22)))/S6),0) -> 0 | U6: =I6*D6/F6 -> 0 | V6: =Calculate!$B$7 -> 2 WD 50 | W6: =+Calculate!$C$7 -> 32200 | X6: =Calculate!$D$7 -> 0 | Y6: =VLOOKUP(V6,Defaults!$B$22:$Q$29,4,FALSE) -> 50 | Z6: =VLOOKUP(V6,Defaults!$B$22:$Q$29,5,FALSE) -> 12000 | AA6: =IF((Z6-X6)/AD6>Defaults!$A$21,Defaults!$A$21,(Z6-X6)/AD6) -> 20 | AB6: =(VLOOKUP(V6,Defaults!$M$22:$P$29,2,FALSE)-VLOOKUP(V6,Defaults!$M$22:$P$29,3,FALSE)*AA6^0.5-VLOOKUP(V6,Defaults!$M$22:$P$29,4,FALSE)*AD6^0.5)^2 -> 0.1789467251 | AC6: =W6*AB6 -> 5762.084547 | AD6: =Calculate!$E$7 -> 600 | AE6: =0.044*Y6 -> 2.2 | AF6: =IFERROR((((W6-AC6)*(Calculate!$C$22/(1-((1+Calculate!$C$22)^(-AA6))))+((AC6*Calculate!$C$22)))/AD6),0) -> 4.417838365 | AG6: =IFERROR(VLOOKUP(V6,Defaults!$B$22:$Q$29,16,FALSE)*W6/Z6,0) -> 2.683333333 | AH6: =T6+AF6 -> 4.417838365 | AI6: =U6+AG6 -> 2.683333333 | AJ6: =Calculate!$C$20+Calculate!$C$21*(1.5-1) -> 17.67 | AK6: =AE6*Calculate!$C$19 -> 3.85 | AL6: =ROUND(1/R6*(1*Calculate!$C$20+(1.5-1)*Calculate!$C$21),2)+ROUND(AE6*Calculate!$C$19/R6,2)+ROUND(AI6/R6,2)+ROUND(AH6/R6,2) -> 1.2 | AM6: =AL6*Calculate!$J$8 -> 1.2
B8: Bottom row is for added use of fertilizer spreader if gypsum is applied
AH10: =SUM(AF5,AG5,AJ5,AK5) -> 24.0911717
